bitfinex-derivatives/quotes_ETHF0:USTF0_20250620
["timestamp","ask_amount","ask_price","bid_price","bid_amount"]
[1750436234847,0.80539,2483.1,2483.0,0.80539]
[1750436235037,0.80535,2483.2,2483.1,0.80535]
[1750436235241,0.80541,2483.0,2482.8,0.80544]
[1750436235441,5.29909,2483.1,2482.9,0.80543]
[1750436235647,5.29909,2483.1,2482.5,4.00308]
[1750436235845,5.29906,2483.1,2483.0,0.8054]
[1750436236044,36.077,2483.3,2482.8,2.01366]
[1750436236245,0.80539,2483.1,2483.0,0.80539]
[1750436236447,0.80536,2483.2,2483.1,0.80535]
[1750436236648,0.80536,2483.2,2482.5,0.6723]
[1750436236649,0.80547,2482.8,2482.5,0.6723]
[1750436236850,0.80545,2482.9,2482.8,0.80545]
[1750436237651,0.80551,2482.7,2482.6,0.8055]
[1750436237841,0.80548,2482.8,2482.7,0.80547]
[1750436238246,0.80551,2482.7,2482.6,0.8055]
[1750436238552,5.22131,2483.0,2482.8,0.80543]
[1750436238553,0.80545,2482.9,2482.8,0.80543]
[1750436238846,2.01369,2482.8,2481.9,3.2078]
[1750436239149,2.01369,2482.8,2482.3,0.80561]
[1750436239150,0.80561,2482.4,2482.3,0.80561]
[1750436239352,0.80566,2482.2,2482.1,0.80566]
[1750436239545,0.80568,2482.2,2482.1,0.80567]
[1750436239746,0.80564,2482.3,2482.2,0.80563]
[1750436240142,0.80568,2482.2,2482.1,0.80566]
[1750436240763,0.80572,2482.0,2481.9,0.6712]
[1750436240954,0.80578,2481.9,2481.6,3.35599]
[1750436241158,30.8098,2482.2,2481.7,2.01455]
[1750436241342,32.0718,2482.2,2481.6,1.3414]
[1750436241548,0.80581,2481.8,2481.7,0.80579]
[1750436241944,2.01457,2481.7,2480.8,2.01521]
[1750436242153,2.01457,2481.7,2481.2,0.80597]
[1750436242154,0.80598,2481.3,2481.2,0.80597]
[1750436242351,0.80592,2481.4,2481.3,0.80592]
[1750436242659,0.80596,2481.3,2481.2,0.80596]
[1750436242952,0.80598,2481.3,2481.2,0.80597]
[1750436243156,1.2693,2481.4,2480.8,4.02266]
[1750436243357,1.2693,2481.4,2480.8,0.6499]
[1750436243757,0.80606,2481.0,2480.9,0.80606]
[1750436244062,3.2078,2481.2,2480.6,3.2078]
[1750436244359,4.4771,2481.2,2480.5,2.01553]
[1750436244653,4.4771,2481.2,2480.4,2.01557]
[1750436244854,4.4771,2481.2,2480.3,5.22347]
[1750436244855,15.47290397,2481.2,2480.3,5.22347]
[1750436245050,3.2078,2480.9,2480.2,2.01577]
[1750436245247,27.525,2480.8,2480.2,0.6574]
[1750436245458,4.01399,2480.6,2480.1,2.01585]
[1750436245655,0.80622,2480.5,2480.0,5.3737]
[1750436245958,3.2078,2480.6,2480.5,0.80621]
[1750436246258,0.80626,2480.4,2480.3,0.80626]
[1750436246556,3.2078,2480.6,2480.1,1.3777]
[1750436246751,1.3143,2480.5,2480.0,0.15]
[1750436247162,0.80634,2480.1,2480.0,0.15]
[1750436247347,0.80634,2480.1,2480.0,0.95637]
[1750436247549,0.80634,2480.1,2480.0,0.15]
[1750436247859,1.3143,2480.1,2480.0,0.95637]
[1750436248561,3.2078,2480.6,2480.5,0.80621]
[1750436248752,3.2078,2481.0,2480.9,0.80608]
[1750436250056,0.41038397,2482.0,2481.9,0.80575]
[1750436250456,0.66,2482.9,2481.9,5.0]
[1750436250457,1.2967,2482.8,2481.9,5.0]
[1750436250663,1.2967,2482.8,2482.0,3.2078]
[1750436250854,1.2967,2482.8,2482.1,2.01423]
[1750436251164,0.80551,2482.7,2482.5,0.80556]
[1750436251565,0.80551,2482.7,2482.5,0.80554]
[1750436252066,3.2078,2482.9,2482.3,3.2078]
[1750436252565,0.80551,2482.7,2482.5,0.80554]
[1750436253062,0.80548,2482.8,2482.6,0.80553]
[1750436253463,1.2689,2482.8,2482.3,3.2078]
[1750436253663,0.80556,2482.6,2482.4,0.80559]
[1750436253958,1.2689,2482.8,2482.3,3.2078]
[1750436253959,0.80546,2482.8,2482.3,3.2078]
[1750436254153,35.618,2483.0,2482.3,3.2078]
[1750436254351,2.08647,2482.8,2482.6,0.8055]
[1750436254758,0.80549,2482.7,2482.5,0.80554]
[1750436255055,1.281,2482.8,2482.2,0.80565]
[1750436255263,1.281,2482.8,2482.0,3.2078]
[1750436255563,8.94451,2482.7,2482.3,3.2078]
[1750436255860,0.80556,2482.5,2482.4,0.80557]
[1750436256058,9.42,2482.7,2482.3,3.2078]
[1750436256465,9.42,2482.7,2482.5,0.80555]
[1750436256466,0.80553,2482.6,2482.5,0.80555]
[1750436256861,9.42,2482.7,2482.1,1.3887]
[1750436257162,3.2078,2483.2,2482.6,5.22158]
[1750436257364,4.01314,2483.2,2483.1,0.80536]
[1750436257551,3.2078,2483.2,2483.1,0.80536]
[1750436257867,4.01313,2483.2,2483.1,0.80536]
[1750436258158,3.2078,2483.2,2483.1,0.80536]
[1750436258362,4.01313,2483.2,2483.1,0.80536]
[1750436258560,3.2078,2483.2,2482.7,3.3245]
[1750436258754,3.2078,2483.8,2483.7,0.80517]
[1750436259172,3.2078,2484.2,2484.1,0.80504]
[1750436259459,0.80508,2484.0,2483.6,3.2078]
[1750436259666,5.37112,2484.2,2483.6,5.22077]
[1750436259857,0.80504,2484.1,2483.9,0.80508]
[1750436260056,4.01281,2484.2,2484.1,0.80504]
[1750436260257,3.2078,2484.2,2483.6,4.568]
[1750436260564,4.01283,2484.2,2484.0,0.80506]
[1750436261064,0.80506,2484.1,2483.9,0.80509]
[1750436261263,3.2078,2484.2,2483.6,12.705]
[1750436261264,4.01282,2484.2,2483.6,4.568]
[1750436261466,3.2078,2484.2,2483.7,1.3602]
[1750436261659,3.2078,2484.2,2484.1,0.80504]
[1750436262062,3.2078,2484.2,2484.1,0.0187315]
[1750436262258,4.01281,2484.2,2484.1,0.0187315]
[1750436263164,4.01281,2484.2,2484.1,0.02957171]
[1750436263358,4.01281,2484.2,2483.3,3.2078]
[1750436263359,0.8053,2483.4,2483.3,3.2078]
[1750436263561,6.03783,2484.1,2482.6,3.2078]
[1750436263562,2.01302,2483.6,2482.6,3.2078]
[1750436263753,8.135,2483.5,2483.2,0.8053]
[1750436263955,0.80535,2483.2,2482.9,3.2078]
[1750436264154,1.364,2483.5,2483.2,0.80533]
[1750436264457,0.8053,2483.4,2483.3,0.8053]
[1750436264654,3.2078,2483.7,2483.6,0.8052]
[1750436264851,3.2078,2483.7,2483.0,3.40647021]
[1750436265053,0.8053,2483.3,2483.0,1.39304021]
[1750436265256,0.8053,2483.4,2483.1,0.01084021]
[1750436265452,11.3428,2483.7,2483.2,3.2078]
[1750436265668,0.80522,2483.6,2483.5,0.80521]
[1750436266160,0.80522,2483.6,2483.2,3.2078]
[1750436266161,3.2078,2483.7,2483.6,0.8052]
[1750436266364,1.364,2484.0,2483.7,0.80517]
[1750436266553,8.94012,2483.9,2483.8,0.80512]
[1750436266757,0.80505,2484.1,2484.0,0.80505]
[1750436266953,9.5208,2484.4,2483.9,3.2078]
[1750436267260,1.3858,2484.4,2483.9,3.2078]
[1750436267462,8.135,2484.4,2484.1,0.01084021]
[1750436267667,0.80501,2484.2,2484.1,0.81586021]
[1750436267869,9.5208,2484.4,2484.2,0.805]
[1750436267870,0.805,2484.3,2484.2,0.805]
[1750436268058,8.135,2484.4,2484.3,0.80497]
[1750436268365,8.135,2484.4,2484.1,0.01084021]
[1750436268366,0.80501,2484.2,2484.1,0.80504]
[1750436268565,0.80501,2484.2,2484.1,0.81969915]
[1750436268865,3.2078,2484.5,2484.1,0.01468915]
[1750436269164,3.2078,2484.5,2484.4,0.80494]
[1750436269563,3.2078,2484.5,2484.4,0.81962915]
[1750436270064,0.80482,2484.8,2484.7,0.80483]
[1750436270275,0.80483,2484.8,2484.7,0.80483]
[1750436270457,9.3903,2485.2,2484.5,0.80491]
[1750436270659,0.8048,2484.9,2484.8,0.81948915]
[1750436271055,0.8048,2484.9,2484.8,0.01468915]
[1750436271567,3.2078,2485.6,2484.8,5.01468915]
[1750436271860,3.2078,2485.6,2484.9,4.5874]
[1750436271861,0.80465,2485.3,2484.9,4.5874]
[1750436272063,0.06933781,2485.5,2484.9,4.5874]
[1750436272260,0.80478,2484.9,2484.8,0.01468915]
[1750436272663,0.80478,2484.9,2484.8,0.81947915]
[1750436273365,3.2078,2485.3,2485.1,0.8047]
[1750436273564,0.80474,2485.1,2484.8,0.01468915]
[1750436273766,0.80475,2485.0,2484.9,0.81944915]
[1750436273961,0.80474,2485.1,2485.0,0.80474]
[1750436274163,0.80469,2485.2,2485.1,0.80468]
[1750436274472,0.80471,2485.2,2485.1,0.8047]
[1750436274669,0.80471,2485.2,2485.1,0.80472]
[1750436274864,0.80471,2485.2,2485.1,0.81940915]
[1750436275059,0.80471,2485.2,2485.1,0.01468915]
[1750436276169,0.80471,2485.2,2485.1,0.81940915]
[1750436276367,0.80471,2485.2,2485.1,0.01468915]
[1750436276967,1.361,2485.4,2485.1,0.01468915]
[1750436277163,0.80468,2485.2,2485.1,0.01468915]
[1750436278270,16.80048397,2485.2,2485.1,0.01468915]
[1750436278462,0.80505,2484.2,2484.1,0.80502]
[1750436278668,0.80499,2484.3,2484.2,0.80499]
[1750436278967,0.80504,2484.2,2484.1,0.80503]
[1750436279171,0.80499,2484.3,2484.2,0.80499]
[1750436279567,0.80503,2484.2,2483.9,4.5252]
[1750436279770,0.06933781,2484.4,2483.9,3.2078]
[1750436279964,2.08171781,2484.4,2483.7,2.01291]
[1750436280160,0.80516,2483.8,2483.7,0.80515]
[1750436280366,2.01262,2484.1,2483.6,3.2078]
[1750436280570,0.80525,2483.5,2483.3,3.2078]
[1750436280772,9.95785,2483.8,2483.3,3.2078]
[1750436280974,0.80519,2483.7,2483.3,3.2078]
[1750436281175,5.22089,2483.5,2482.9,3.2078]
[1750436281363,7.945,2483.4,2483.0,0.80539]
[1750436281568,9.3222,2483.4,2482.9,3.2078]
[1750436281766,9.3222,2483.4,2483.0,0.8054]
[1750436282067,3.2078,2483.2,2482.5,3.2078]
[1750436282364,3.2078,2483.2,2482.6,1.3743]
[1750436282570,1.3772,2483.4,2482.6,1.3743]
[1750436282571,0.80522,2483.6,2483.1,3.2078]
[1750436282772,1.21527189,2483.5,2483.0,1.3743]
[1750436282974,0.80537,2483.1,2482.8,3.2078]
[1750436283177,0.80543,2482.9,2482.8,3.2078]
[1750436283480,0.8055,2482.7,2482.4,3.2078]
[1750436284070,0.80548,2482.8,2482.4,3.2078]
[1750436284266,1.3772,2483.0,2482.4,3.2078]
[1750436284474,10.99580397,2482.6,2482.1,4.5821]
[1750436284779,7.946,2482.6,2482.2,0.80566]
[1750436284973,7.946,2482.6,2482.2,1.2692]
[1750436285276,7.946,2482.7,2482.4,3.2078]
[1750436285467,8.75151,2482.7,2482.2,2.07484]
[1750436285663,0.80561,2482.4,2482.1,3.2078]
[1750436286063,1.3206,2482.6,2482.1,3.2078]
[1750436286264,0.80571,2482.1,2481.7,3.2078]
[1750436286470,3.2078,2482.4,2481.9,0.80573]
[1750436286669,0.80567,2482.2,2481.8,0.80577]
[1750436286870,0.80571,2482.1,2481.7,4.01361]
[1750436287171,0.80571,2482.1,2481.5,1.2692]
[1750436287172,1.3206,2482.2,2481.5,2.07508]
[1750436287371,1.3206,2482.2,2481.5,1.2692]
[1750436287568,2.01394,2482.5,2482.1,3.2078]
[1750436287569,7.948,2482.5,2482.1,3.2078]
[1750436287769,7.948,2482.9,2482.1,3.2078]
[1750436287977,0.80551,2482.7,2482.3,0.8056]
[1750436288178,9.334,2482.9,2482.2,0.80564]
[1750436288179,0.80554,2482.6,2482.2,0.80564]
[1750436288373,1.386,2482.7,2482.1,3.2078]
[1750436288578,10.99580397,2482.3,2481.6,4.01364]
[1750436288779,9.334,2482.2,2481.9,0.80575]
[1750436288974,7.948,2482.3,2481.9,3.2078]
[1750436289279,8.75364,2482.3,2481.9,0.80573]
[1750436289475,8.75364,2482.3,2481.6,8.2078]
[1750436289476,7.948,2482.3,2481.6,8.2078]
[1750436289677,1.386,2482.2,2481.6,8.2078]
[1750436289872,0.80574,2482.0,2481.6,8.2078]
[1750436290068,3.2078,2482.0,2481.6,8.2078]
[1750436290278,15.00942397,2481.7,2481.6,5.0]
[1750436290476,50.19542397,2481.7,2481.6,5.0]
[1750436290777,0.80582,2481.7,2481.6,5.0]
[1750436290984,7.949,2481.7,2481.6,5.0]
[1750436291175,8.75482,2481.7,2481.6,5.0]
[1750436291369,3.2078,2482.3,2481.6,8.2078]
[1750436291570,50.273,2482.6,2482.2,0.80566]
[1750436291571,3.2078,2482.6,2482.2,0.80566]
[1750436291775,3.2078,2482.6,2482.5,0.80556]
[1750436291970,3.2078,2482.6,2482.2,3.2078]
[1750436292473,7.949,2482.5,2482.4,0.80559]
[1750436292678,3.2078,2482.6,2482.1,2.01423]
[1750436292877,3.2078,2482.6,2482.2,1.3393]
[1750436293073,7.949,2482.6,2482.3,0.80561]
[1750436293273,0.80558,2482.5,2482.4,0.80559]
[1750436293471,0.80552,2482.7,2482.3,3.2078]
[1750436293779,7.95,2482.6,2482.3,5.22185]
[1750436293978,8.75553,2482.6,2482.5,0.80556]
[1750436294177,7.95,2482.6,2482.5,0.80556]
[1750436294474,8.75553,2482.6,2482.5,0.80556]
[1750436294682,10.15163,2482.6,2482.5,0.80556]
[1750436294983,2.20163,2482.6,2482.5,0.80556]
[1750436295179,0.80561,2482.4,2482.3,0.80561]
[1750436295678,0.80562,2482.4,2482.3,0.80561]
[1750436295880,0.80557,2482.5,2482.4,0.80557]
[1750436296186,2.20167,2482.5,2482.4,0.80557]
[1750436296380,7.95,2482.6,2482.5,0.80556]
[1750436296681,7.95,2482.8,2482.4,2.01398]
[1750436296876,3.2078,2482.9,2482.8,0.80546]
[1750436297387,4.01323,2482.9,2482.8,0.80546]
[1750436297582,3.2078,2482.9,2482.8,0.80546]
[1750436298286,7.95,2483.2,2482.8,4.01326]
[1750436298477,0.80547,2482.8,2482.5,0.6914]
[1750436298788,0.80558,2482.5,2482.4,0.80557]
[1750436298982,1.2712,2482.7,2482.6,0.80553]
[1750436299189,35.9435,2482.7,2482.6,0.80553]
[1750436299688,0.80559,2482.5,2482.2,3.2078]
[1750436299887,0.8056,2482.5,2482.4,0.80558]
[1750436300085,10.99580397,2482.6,2482.2,3.2078]
[1750436300384,0.8057,2482.1,2482.0,0.8057]
[1750436300585,0.8057,2482.1,2481.7,3.8992]
[1750436300797,3.2078,2482.6,2481.9,2.0144]
[1750436300983,35.125,2482.5,2482.0,3.2078]
[1750436301176,0.8058,2481.8,2481.7,0.80579]
[1750436301378,3.2078,2482.2,2481.6,5.0]
[1750436301680,3.2078,2482.2,2481.4,1.3917]
[1750436301681,0.80581,2481.8,2481.7,0.80581]
[1750436301884,0.80577,2481.9,2481.8,0.80578]
[1750436302189,2.01401,2482.4,2481.6,2.01464]
[1750436302381,35.117,2482.3,2481.9,0.80573]
[1750436302580,0.80579,2481.8,2481.7,2.1975]
[1750436302785,37.11315,2482.2,2481.8,0.80578]
[1750436302982,0.80576,2481.9,2481.8,0.80578]
[1750436303382,1.2996,2482.3,2481.7,3.2078]
[1750436303690,35.81267,2482.2,2482.1,0.80565]
[1750436304285,35.007,2482.2,2482.1,0.80565]
[1750436304488,3.2078,2482.5,2481.9,2.0144]
[1750436304791,7.874,2482.4,2482.3,0.8056]
[1750436305290,8.67959,2482.4,2482.3,0.8056]
[1750436305491,0.80564,2482.3,2482.2,0.80563]
[1750436305784,0.80569,2482.1,2482.0,4.5992]
[1750436305990,0.80572,2482.0,2481.9,0.631]
[1750436306291,0.80572,2482.0,2481.7,3.2078]
[1750436306292,2.01425,2482.1,2481.7,4.01361]
[1750436306484,0.80578,2481.9,2481.8,0.80577]
[1750436307089,2.01441,2481.9,2481.4,3.2078]
[1750436307292,0.80588,2481.6,2481.5,0.80586]
[1750436307488,3.2078,2482.0,2481.5,2.01469]
[1750436307789,0.80582,2481.7,2481.6,2.14133]
[1750436307990,0.80578,2481.9,2481.8,0.80576]
[1750436308184,3.2078,2482.0,2481.6,1.3355]
[1750436308185,5.22213,2482.0,2481.6,1.3355]
[1750436308386,3.2078,2482.0,2481.6,1.3355]
[1750436308590,0.80578,2481.9,2481.8,0.80576]
[1750436308986,0.80582,2481.8,2481.7,0.8058]
[1750436309984,3.2078,2482.3,2481.7,5.22232]
[1750436310194,0.80573,2482.1,2482.0,0.8057]
[1750436310495,2.03533912,2482.1,2482.0,0.8057]
[1750436310683,1.22960912,2482.1,2482.0,0.8057]
[1750436310889,1.22964805,2482.2,2481.9,2.01436]
[1750436311086,1.22964805,2482.2,2482.1,0.80569]
[1750436311286,0.80568,2482.2,2482.1,0.80563]
[1750436311592,0.80566,2482.3,2482.2,0.80562]
[1750436311788,0.80562,2482.4,2482.3,0.80559]
[1750436311984,8.68059,2482.5,2482.4,0.80559]
[1750436312186,7.58712185,2482.8,2482.6,0.8055]
[1750436312187,0.80553,2482.7,2482.6,0.8055]
[1750436312380,7.875,2482.8,2482.7,0.8055]
[1750436312585,35.68142,2483.0,2482.9,0.80543]
[1750436312785,2.36563185,2483.6,2482.9,3.2078]
[1750436312985,0.80532,2483.3,2483.2,0.80533]
[1750436313180,27.008,2483.6,2483.0,1.3678]
[1750436313181,0.80529,2483.4,2483.3,0.8053]
[1750436313389,0.80531,2483.3,2483.2,0.80531]
[1750436313590,0.80531,2483.3,2483.0,1.3678]
[1750436313793,14.20360397,2483.3,2482.6,3.2078]
[1750436314091,0.80567,2482.2,2482.1,0.80566]
[1750436314393,0.80567,2482.2,2482.1,0.80567]
[1750436314594,0.80564,2482.3,2482.2,0.80565]
[1750436315197,7.874,2482.4,2481.9,5.2199]
[1750436315491,0.80566,2482.2,2481.9,5.2199]
[1750436315807,0.80572,2482.0,2481.9,4.65784]
[1750436315992,0.80572,2482.0,2481.8,0.80577]
[1750436316186,0.80577,2481.9,2481.6,3.2078]
[1750436316387,12.4041,2482.4,2481.9,0.80576]
[1750436316388,7.874,2482.0,2481.9,0.80576]
[1750436316595,0.80579,2481.8,2481.7,0.8058]
[1750436316788,0.80577,2481.9,2481.6,3.2078]
[1750436316984,27.80671,2482.1,2482.0,0.80572]
[1750436317189,0.80572,2482.0,2481.9,0.80573]
[1750436317792,7.874,2482.1,2481.7,2.0863]
[1750436317793,0.80579,2481.8,2481.7,2.0863]
[1750436317999,0.80575,2482.0,2481.9,0.80575]
[1750436318198,0.80578,2481.9,2481.8,0.80577]
[1750436318701,0.8057,2482.1,2482.0,0.8057]
[1750436319000,11.0818,2482.2,2482.1,0.80569]
[1750436319389,0.80561,2482.4,2482.0,3.2078]
[1750436319589,0.80561,2482.4,2482.3,0.8056]
[1750436319792,0.80564,2482.3,2482.2,0.80563]
[1750436319991,4.01333,2482.6,2482.5,0.80556]
[1750436320187,11.0818,2482.6,2482.0,3.2078]
[1750436320388,0.80569,2482.1,2482.0,3.2078]
[1750436321801,8.68067,2482.2,2482.1,0.80568]
[1750436321992,8.68067,2482.2,2482.0,3.2078]
[1750436321993,0.80568,2482.1,2482.0,4.01352]
[1750436322189,0.80568,2482.1,2482.0,3.2078]
[1750436322395,2.01422,2482.1,2481.5,1.2618]
[1750436322598,2.01422,2482.1,2481.4,4.658]
[1750436322599,0.80588,2481.5,2481.4,4.658]
[1750436322902,0.80588,2481.5,2480.9,2.01518]
[1750436322903,2.01473,2481.5,2480.9,1.2768]
[1750436323103,0.80604,2481.0,2480.9,0.80605]
[1750436323395,28.94089,2481.3,2480.7,3.2078]
[1750436323589,0.80609,2480.9,2480.8,0.8061]
[1750436324101,0.80599,2481.2,2481.1,0.80598]
[1750436324297,1.22486024,2481.2,2481.1,0.80598]
[1750436324500,2.01464,2481.6,2481.2,0.80597]
[1750436324697,3.31696327,2481.5,2481.4,0.01328908]
[1750436324897,3.3169295,2481.5,2481.4,0.01328908]
[1750436325100,0.80607,2480.9,2480.8,2.17699]
[1750436325400,0.80605,2481.0,2480.9,0.80606]
[1750436325590,0.80603,2481.1,2481.0,0.80603]
[1750436325799,2.02967002,2481.1,2481.0,0.80603]
[1750436326100,0.80607,2480.9,2480.8,2.17699]
[1750436326401,0.80609,2480.9,2480.8,0.80609]
[1750436326698,9.88999,2481.2,2480.7,3.2078]
[1750436326902,0.80611,2480.9,2480.8,0.80611]
[1750436327298,0.80606,2481.0,2480.9,0.80606]
[1750436327603,2.03030539,2481.0,2480.9,0.80606]
[1750436327804,0.80606,2481.0,2480.9,0.80606]
[1750436327992,9.1663,2481.2,2480.8,0.8193822]
[1750436327993,0.80607,2480.9,2480.8,0.8193822]
[1750436328198,0.80607,2481.0,2480.9,0.80606]
[1750436328498,0.80607,2481.0,2480.9,0.8259983]
[1750436328705,2.03013689,2481.0,2480.9,0.8259983]
[1750436329004,0.1952794,3359.4,2480.9,5.0199383]
[1750436329005,5.57343185,2481.6,2480.9,5.0199383]
[1750436329302,1.22416757,2481.5,2481.4,0.80591]
[1750436330003,2.03004757,2481.5,2481.4,0.80591]
[1750436330190,1.22416757,2481.5,2481.4,0.80591]
[1750436331001,0.80594,2481.4,2481.3,0.80591]
[1750436331298,7.876,2481.7,2481.6,0.80585]
[1750436331602,9.90732092,2481.7,2481.6,0.01522909]
[1750436332793,9.10151092,2481.7,2481.6,0.82107909]
[1750436333006,1.22451092,2481.7,2481.6,4.02887909]
[1750436333198,0.80578,2481.9,2481.8,0.80576]
[1750436333399,1.51773807,2482.0,2481.6,3.22302909]
[1750436333599,7.877,2482.1,2481.9,0.80572]
[1750436333803,0.80575,2481.9,2481.8,0.01522909]
[1750436334104,2.02934344,2481.9,2481.8,0.01522909]
[1750436334303,2.02934344,2481.9,2481.8,0.82100909]
[1750436334604,2.02934344,2481.9,2481.8,0.01522909]
[1750436335203,0.80575,2481.9,2481.8,0.01522909]
[1750436335897,3.2078,2482.1,2481.8,0.01522909]
[1750436336206,0.28985103,2482.2,2481.8,0.01522909]
[1750436336207,0.80575,2482.0,2481.9,0.80573]
[1750436336706,0.80575,2482.0,2481.9,0.82095909]
[1750436336904,0.80575,2482.0,2481.9,0.01522909]
[1750436337411,0.80571,2482.1,2481.9,0.01522909]
[1750436337600,1.3144,2482.3,2481.9,5.23739909]
[1750436337796,0.29316827,2482.4,2482.1,0.01522909]
[1750436338000,1.09875827,2482.4,2482.3,0.80562]
[1750436338503,0.80554,2482.6,2482.2,3.2078]
[1750436338702,3.2078,2482.7,2482.6,0.80552]
[1750436339000,3.2078,2483.5,2483.3,0.8053]
[1750436339209,1.22482191,2483.4,2483.3,0.8053]
[1750436339407,0.6493,2483.9,2483.4,2.01317]
[1750436339604,3.2078,2484.1,2483.6,3.2078]
[1750436339605,13.03646,2484.1,2483.6,3.2078]
[1750436339808,1.22441051,2484.0,2483.6,3.2078]
[1750436339997,10.8868,2484.1,2483.8,0.01522909]
[1750436340198,2.01286,2483.8,2483.0,3.2078]
[1750436340395,3.2078,2484.0,2483.0,6.57024]
[1750436340596,1.22286712,2483.9,2483.8,0.80513]
[1750436340804,7.679,2483.9,2483.8,0.80513]
[1750436341102,8.48412,2483.9,2483.6,3.2078]
[1750436341308,3.01493185,2484.6,2483.7,2.01292]
[1750436341511,1.22256949,2484.5,2483.9,3.2078]
[1750436341703,1.3446,2484.7,2484.6,0.80487]
[1750436342010,2.0117,2485.3,2484.5,14.20360397]
[1750436342011,7.677,2485.3,2484.5,14.20360397]
[1750436342209,3.61556033,2485.5,2484.8,3.2078]
[1750436342510,0.80473,2485.1,2484.8,0.80481]
[1750436342704,0.80465,2485.3,2484.6,3.2078]
[1750436342909,0.80465,2485.3,2485.0,0.80473]
[1750436343211,7.677,2485.4,2485.1,0.80471]
[1750436343409,30.29027204,2485.5,2485.0,0.80472]
[1750436343410,0.80466,2485.3,2485.0,0.80472]
[1750436343607,10.8848,2485.5,2485.2,0.80466]
[1750436344098,0.80466,2485.3,2485.0,2.15003]
[1750436344304,0.80466,2485.3,2485.0,0.80472]
[1750436344505,12.1788,2485.5,2484.9,3.2078]
[1750436345111,7.675,2485.4,2485.2,0.80466]
[1750436345407,8.47962,2485.4,2485.1,0.80469]
[1750436345610,8.47962,2485.4,2485.2,0.80467]
[1750436345818,7.675,2485.4,2485.0,1.3692]
[1750436346007,10.8828,2485.5,2485.3,0.80463]
[1750436346312,10.8828,2485.5,2485.1,0.8047]
[1750436346313,0.80467,2485.3,2485.1,0.8047]
[1750436346510,0.80471,2485.1,2485.0,6.3692]
[1750436346713,0.80469,2485.2,2485.0,5.0]
[1750436346912,0.8047,2485.2,2485.0,5.80474]
[1750436347114,12.1813,2485.5,2485.0,6.3692]
[1750436347313,3.2078,2485.5,2485.3,0.80463]
[1750436347512,3.2078,2485.5,2485.4,0.80461]
[1750436347810,0.29449582,2485.9,2485.4,4.01241]
[1750436348014,0.29449582,2485.9,2485.8,0.80448]
[1750436348314,0.29449582,2485.9,2485.8,15.00808397]
[1750436348518,5.21799,2487.1,2486.0,2.01106]
[1750436348710,4.555,2487.1,2486.5,3.2078]
[1750436348916,0.80436,2486.2,2486.1,3.2078]
[1750436349110,3.2078,2486.8,2486.0,3.2078]
[1750436349313,0.80424,2486.6,2486.3,3.2078]
[1750436349713,0.80426,2486.5,2486.3,4.0121]
[1750436349912,0.80421,2486.7,2486.3,3.2078]
[1750436350110,0.80419,2486.8,2486.6,0.80421]
[1750436350610,0.80426,2486.6,2486.4,2.14259]
[1750436350911,4.555,2487.1,2486.3,3.2078]
[1750436350912,0.80429,2486.4,2486.3,3.2078]
[1750436351113,0.80431,2486.4,2486.1,8.47438]
[1750436351415,10.8778,2486.9,2486.2,3.2078]
[1750436351607,3.2078,2486.9,2486.5,3.2078]
[1750436351804,3.2078,2486.9,2486.2,1.2742]
[1750436351805,3.2078,2486.9,2486.2,2.07854]
[1750436352008,0.80432,2486.3,2486.2,1.2742]
[1750436352521,0.80439,2486.1,2486.0,3.2078]
[1750436353012,0.80437,2486.2,2486.0,3.2078]
[1750436353208,0.80437,2486.2,2486.0,4.482]
[1750436353514,1.2934,2486.5,2486.0,4.482]
[1750436353515,0.80439,2486.1,2486.0,4.482]
[1750436353712,0.80439,2486.1,2486.0,3.2078]
[1750436354317,0.80452,2485.7,2485.6,0.6568]
[1750436355908,0.80462,2485.4,2485.1,3.2078]
[1750436356112,2.01106,2486.0,2485.1,4.01249]
[1750436356113,0.80468,2485.2,2485.1,4.01249]
[1750436356317,0.80468,2485.2,2485.1,3.2078]
[1750436356509,0.80478,2484.9,2484.8,1.2695]
[1750436356816,0.80478,2484.9,2484.8,0.8048]
[1750436356817,0.8048,2484.9,2484.8,0.8048]
[1750436357017,9.74796781,2485.3,2484.8,1.2695]
[1750436357312,0.80475,2485.0,2484.9,0.80478]
[1750436357512,0.80473,2485.1,2485.0,0.80473]
[1750436357815,0.80461,2485.5,2485.4,0.8046]
[1750436358011,2.01125,2485.8,2484.9,13.00770397]
[1750436358012,0.80464,2485.4,2485.3,3.2078]
[1750436358215,0.80464,2485.4,2485.3,4.01245]
[1750436358411,0.80464,2485.4,2485.3,3.2078]
[1750436358916,0.80465,2485.3,2485.2,0.80466]
[1750436359414,3.36585,2485.7,2485.1,1.3688]
[1750436359415,0.80464,2485.4,2485.3,0.80465]
[1750436359614,1.3545,2485.7,2485.1,1.3688]
[1750436359816,0.80463,2485.4,2485.3,0.80464]
[1750436360015,0.80463,2485.4,2485.1,6.3688]
[1750436360016,0.8046,2485.5,2485.4,0.8046]
[1750436360310,0.8046,2485.5,2485.1,6.3688]
[1750436360311,0.80462,2485.4,2485.3,0.80462]
[1750436360511,3.36582,2485.7,2485.3,3.2078]
[1750436360708,3.36582,2485.7,2485.3,0.80464]
[1750436360910,0.80464,2485.4,2485.3,0.80464]
[1750436361115,0.80461,2485.4,2485.3,0.80464]
[1750436361413,2.01124,2485.8,2485.4,0.8046]
[1750436361617,0.80457,2485.6,2485.5,0.80457]